[Event "Titled Tuesday Blitz March 01 Late 2022"]
[White "Novikova, Galina"]
[Black "Estrada Nieto, Julian"]
[WhiteFideId "4157095"]
[BlackFideId "5101018"]
[WhiteElo "1863"]
[BlackElo "2246"]
[Result "0-1"]
[Round "10"]
[TimeControl "180+1"]
[Date "2022.03.02"]
[WhiteClock "0:00:08"]
[BlackClock "0:00:04"]

1. e4 {[%clk 0:03:00]}  e5 {[%clk 0:02:52]} 2. Nf3 {[%clk 0:02:59]}  Nc6 {[%clk 0:02:52]} 3. d4 {[%clk 0:02:59]}  exd4 {[%clk 0:02:52]} 4. Nxd4 {[%clk 0:03:00]}  Nf6 {[%clk 0:02:52]} 5. Nxc6 {[%clk 0:03:00]}  bxc6 {[%clk 0:02:51]} 6. Qe2 {[%clk 0:03:01]}  Qe7 {[%clk 0:02:43]} 7. Nc3 {[%clk 0:03:02]}  d6 {[%clk 0:02:35]} 8. Bg5 {[%clk 0:03:01]}  h6 {[%clk 0:02:30]} 9. Bh4 {[%clk 0:03:01]}  g6 {[%clk 0:02:23]} 10. e5 {[%clk 0:02:13]}  dxe5 {[%clk 0:02:16]} 11. Ne4 {[%clk 0:02:12]}  Bg7 {[%clk 0:02:15]} 12. O-O-O {[%clk 0:01:54]}  O-O {[%clk 0:02:15]} 13. Qe3 {[%clk 0:01:14]}  g5 {[%clk 0:02:07]} 14. Bg3 {[%clk 0:01:09]}  Nxe4 {[%clk 0:02:06]} 15. Qxe4 {[%clk 0:01:10]}  f5 {[%clk 0:02:04]} 16. Bc4+ {[%clk 0:01:05]}  Be6 {[%clk 0:01:42]} 17. Qxc6 {[%clk 0:01:05]}  Bxc4 {[%clk 0:01:40]} 18. Qxc4+ {[%clk 0:01:06]}  Qf7 {[%clk 0:01:40]} 19. Qxf7+ {[%clk 0:01:03]}  Rxf7 {[%clk 0:01:40]} 20. f3 {[%clk 0:01:04]}  Rb8 {[%clk 0:01:29]} 21. b3 {[%clk 0:01:03]}  Re8 {[%clk 0:01:20]} 22. Rhe1 {[%clk 0:01:01]}  e4 {[%clk 0:01:19]} 23. fxe4 {[%clk 0:01:01]}  fxe4 {[%clk 0:01:20]} 24. Re2 {[%clk 0:00:57]}  a5 {[%clk 0:01:00]} 25. Bf2 {[%clk 0:00:55]}  Bc3 {[%clk 0:00:45]} 26. Bd4 {[%clk 0:00:53]}  Bb4 {[%clk 0:00:38]} 27. c3 {[%clk 0:00:50]}  Bd6 {[%clk 0:00:37]} 28. g3 {[%clk 0:00:41]}  Rfe7 {[%clk 0:00:28]} 29. Rde1 {[%clk 0:00:38]}  Kh7 {[%clk 0:00:25]} 30. Kc2 {[%clk 0:00:38]}  Kg6 {[%clk 0:00:25]} 31. Rf1 {[%clk 0:00:36]}  Rf7 {[%clk 0:00:25]} 32. Ref2 {[%clk 0:00:33]}  Rxf2+ {[%clk 0:00:22]} 33. Rxf2 {[%clk 0:00:34]}  Re6 {[%clk 0:00:19]} 34. Kd2 {[%clk 0:00:30]}  Kh5 {[%clk 0:00:17]} 35. Ke3 {[%clk 0:00:29]}  Kg4 {[%clk 0:00:17]} 36. c4 {[%clk 0:00:20]}  c5 {[%clk 0:00:15]} 37. Bc3 {[%clk 0:00:20]}  Kh3 {[%clk 0:00:14]} 38. Bxa5 {[%clk 0:00:18]}  Be5 {[%clk 0:00:11]} 39. Rf5 {[%clk 0:00:12]}  Bd4+ {[%clk 0:00:11]} 40. Ke2 {[%clk 0:00:12]}  Kxh2 {[%clk 0:00:09]} 41. Bb6 {[%clk 0:00:11]}  Kxg3 {[%clk 0:00:08]} 42. Bxc5 {[%clk 0:00:11]}  Bxc5 {[%clk 0:00:07]} 43. Rxc5 {[%clk 0:00:12]}  g4 {[%clk 0:00:07]} 44. a4 {[%clk 0:00:12]}  Kh4 {[%clk 0:00:05]} 45. a5 {[%clk 0:00:12]}  g3 {[%clk 0:00:05]} 46. b4 {[%clk 0:00:12]}  g2 {[%clk 0:00:03]} 47. Kf2 {[%clk 0:00:12]}  e3+ {[%clk 0:00:03]} 48. Kxg2 {[%clk 0:00:12]}  e2 {[%clk 0:00:04]} 49. a6 {[%clk 0:00:09]}  e1=Q {[%clk 0:00:04]} 50. a7 {[%clk 0:00:09]}  Re2+ {[%clk 0:00:04]} 51. Kf3 {[%clk 0:00:08]}  Qf2# {[%clk 0:00:04]} 0-1


[Site "https://www.chess.com"]

[Event "Titled Tuesday Blitz March 01 Late 2022"]
[White "P., Komal Kishore"]
[Black "Ardila, Oscar Humberto"]
[WhiteFideId "5016703"]
[BlackFideId "4404742"]
[WhiteElo "2109"]
[BlackElo "1898"]
[Result "0-1"]
[Round "10"]
[TimeControl "180+1"]
[Date "2022.03.02"]
[WhiteClock "0:00:01"]
[BlackClock "0:00:35"]

1. e4 {[%clk 0:03:00]}  e5 {[%clk 0:02:59]} 2. Nf3 {[%clk 0:02:59]}  Nc6 {[%clk 0:02:58]} 3. Bb5 {[%clk 0:02:59]}  Nf6 {[%clk 0:02:58]} 4. O-O {[%clk 0:02:59]}  Nxe4 {[%clk 0:02:58]} 5. Re1 {[%clk 0:02:58]}  Nd6 {[%clk 0:02:58]} 6. Nxe5 {[%clk 0:02:56]}  Be7 {[%clk 0:02:58]} 7. Nxc6 {[%clk 0:02:53]}  dxc6 {[%clk 0:02:54]} 8. Ba4 {[%clk 0:02:40]}  O-O {[%clk 0:02:53]} 9. d4 {[%clk 0:02:39]}  Bf6 {[%clk 0:02:49]} 10. c3 {[%clk 0:02:38]}  Bf5 {[%clk 0:02:47]} 11. Bf4 {[%clk 0:02:35]}  Qd7 {[%clk 0:02:45]} 12. Bc2 {[%clk 0:02:27]}  Bxc2 {[%clk 0:02:44]} 13. Qxc2 {[%clk 0:02:26]}  Rfe8 {[%clk 0:02:45]} 14. Nd2 {[%clk 0:02:25]}  Qg4 {[%clk 0:02:44]} 15. Bg3 {[%clk 0:02:20]}  h5 {[%clk 0:02:39]} 16. h3 {[%clk 0:02:18]}  Qd7 {[%clk 0:02:27]} 17. Nf3 {[%clk 0:02:16]}  Nc4 {[%clk 0:02:20]} 18. Qb3 {[%clk 0:02:02]}  b5 {[%clk 0:02:17]} 19. a4 {[%clk 0:01:56]}  a5 {[%clk 0:02:04]} 20. Ne5 {[%clk 0:01:37]}  Bxe5 {[%clk 0:02:00]} 21. dxe5 {[%clk 0:01:36]}  Rab8 {[%clk 0:01:38]} 22. Rad1 {[%clk 0:01:23]}  Qe6 {[%clk 0:01:38]} 23. f4 {[%clk 0:01:10]}  bxa4 {[%clk 0:01:37]} 24. Qxa4 {[%clk 0:00:50]}  Nxb2 {[%clk 0:01:37]} 25. Qxa5 {[%clk 0:00:49]}  Nxd1 {[%clk 0:01:36]} 26. Rxd1 {[%clk 0:00:49]}  Rb2 {[%clk 0:01:33]} 27. Bf2 {[%clk 0:00:30]}  Qb3 {[%clk 0:01:27]} 28. Rd7 {[%clk 0:00:23]}  Qc2 {[%clk 0:01:25]} 29. Qc5 {[%clk 0:00:21]}  Rb1+ {[%clk 0:01:22]} 30. Kh2 {[%clk 0:00:21]}  Rb2 {[%clk 0:01:16]} 31. Kg1 {[%clk 0:00:15]}  Ra8 {[%clk 0:01:14]} 32. e6 {[%clk 0:00:02]}  fxe6 {[%clk 0:00:42]} 33. Rxg7+ {[%clk 0:00:02]}  Kxg7 {[%clk 0:00:39]} 34. Bd4+ {[%clk 0:00:01]}  Kf7 {[%clk 0:00:35]} 35. Qxh5+ {[%clk 0:00:01]}  Qg6 {[%clk 0:00:35]} 0-1


[Site "https://www.chess.com"]

[Event "Titled Tuesday Blitz March 01 Late 2022"]
[White "Peatman, Carter"]
[Black "Stanisz, Patryk"]
[WhiteFideId "2096480"]
[BlackFideId "1123106"]
[WhiteElo "2274"]
[BlackElo "1876"]
[Result "1-0"]
[Round "10"]
[TimeControl "180+1"]
[Date "2022.03.02"]
[WhiteClock "0:00:08"]
[BlackClock "0:00:07"]

1. d4 {[%clk 0:02:59]}  c6 {[%clk 0:02:51]} 2. Bf4 {[%clk 0:02:59]}  g6 {[%clk 0:02:50]} 3. e3 {[%clk 0:02:59]}  Bg7 {[%clk 0:02:50]} 4. c4 {[%clk 0:03:00]}  d6 {[%clk 0:02:50]} 5. Nf3 {[%clk 0:02:59]}  Nf6 {[%clk 0:02:50]} 6. Nc3 {[%clk 0:02:59]}  Nh5 {[%clk 0:02:51]} 7. Bg5 {[%clk 0:02:59]}  Qa5 {[%clk 0:02:50]} 8. Bh4 {[%clk 0:02:53]}  Nd7 {[%clk 0:02:49]} 9. Be2 {[%clk 0:02:52]}  O-O {[%clk 0:02:45]} 10. Bxe7 {[%clk 0:02:49]}  Qb4 {[%clk 0:02:36]} 11. Bxf8 {[%clk 0:02:38]}  Bxf8 {[%clk 0:02:37]} 12. Qb3 {[%clk 0:02:32]}  Qa5 {[%clk 0:02:35]} 13. O-O {[%clk 0:02:31]}  Ndf6 {[%clk 0:02:34]} 14. Rfd1 {[%clk 0:02:30]}  Rb8 {[%clk 0:02:28]} 15. Qc2 {[%clk 0:02:26]}  Ng7 {[%clk 0:02:26]} 16. e4 {[%clk 0:02:26]}  Ne6 {[%clk 0:02:21]} 17. a3 {[%clk 0:02:17]}  Nf4 {[%clk 0:02:20]} 18. Bf1 {[%clk 0:02:11]}  Bd7 {[%clk 0:02:13]} 19. b4 {[%clk 0:02:02]}  Qh5 {[%clk 0:02:13]} 20. Qd2 {[%clk 0:01:59]}  g5 {[%clk 0:02:13]} 21. e5 {[%clk 0:01:58]}  Ng4 {[%clk 0:02:07]} 22. Ne4 {[%clk 0:01:53]}  dxe5 {[%clk 0:02:00]} 23. dxe5 {[%clk 0:01:51]}  Be6 {[%clk 0:01:34]} 24. h3 {[%clk 0:01:50]}  Bg7 {[%clk 0:01:20]} 25. hxg4 {[%clk 0:01:50]}  Qxg4 {[%clk 0:01:21]} 26. Ng3 {[%clk 0:01:41]}  h5 {[%clk 0:00:59]} 27. Nh2 {[%clk 0:01:12]}  Qh4 {[%clk 0:00:52]} 28. Re1 {[%clk 0:01:03]}  Bh6 {[%clk 0:00:42]} 29. Qd6 {[%clk 0:01:00]}  Re8 {[%clk 0:00:36]} 30. b5 {[%clk 0:00:54]}  g4 {[%clk 0:00:28]} 31. bxc6 {[%clk 0:00:51]}  bxc6 {[%clk 0:00:29]} 32. Qxc6 {[%clk 0:00:52]}  Rc8 {[%clk 0:00:29]} 33. Qb7 {[%clk 0:00:41]}  Ng6 {[%clk 0:00:20]} 34. Bd3 {[%clk 0:00:34]}  Bf4 {[%clk 0:00:19]} 35. Nhf1 {[%clk 0:00:35]}  Qg5 {[%clk 0:00:17]} 36. Bxg6 {[%clk 0:00:29]}  Qxg6 {[%clk 0:00:17]} 37. Qe4 {[%clk 0:00:23]}  Qg5 {[%clk 0:00:17]} 38. Ne3 {[%clk 0:00:18]}  h4 {[%clk 0:00:17]} 39. Ne2 {[%clk 0:00:19]}  Bxe5 {[%clk 0:00:14]} 40. Rad1 {[%clk 0:00:13]}  h3 {[%clk 0:00:14]} 41. Ng3 {[%clk 0:00:11]}  Bxg3 {[%clk 0:00:11]} 42. fxg3 {[%clk 0:00:11]}  hxg2 {[%clk 0:00:11]} 43. Nxg2 {[%clk 0:00:10]}  Qc5+ {[%clk 0:00:10]} 44. Ne3 {[%clk 0:00:08]}  Re8 {[%clk 0:00:10]} 45. Qd4 {[%clk 0:00:07]}  Qg5 {[%clk 0:00:09]} 46. Qf4 {[%clk 0:00:08]}  Qc5 {[%clk 0:00:09]} 47. Kg2 {[%clk 0:00:08]}  Qc6+ {[%clk 0:00:09]} 48. Nd5 {[%clk 0:00:07]}  Qc5 {[%clk 0:00:08]} 49. Qg5+ {[%clk 0:00:07]}  Kf8 {[%clk 0:00:08]} 50. Qh6+ {[%clk 0:00:07]}  Kg8 {[%clk 0:00:07]} 51. Nf6# {[%clk 0:00:08]} 1-0


[Site "https://www.chess.com"]

[Event "Titled Tuesday Blitz March 01 Late 2022"]
[White "Petrovic, Aleksa"]
[Black "Iskusnyh, Sergei"]
[WhiteFideId "967629"]
[BlackFideId "4120027"]
[WhiteElo "2139"]
[BlackElo "2492"]
[Result "0-1"]
[Round "10"]
[TimeControl "180+1"]
[Date "2022.03.01"]
[WhiteClock "0:00:03"]
[BlackClock "0:00:32"]

1. e4 {[%clk 0:03:00]}  e6 {[%clk 0:02:59]} 2. d4 {[%clk 0:02:58]}  d5 {[%clk 0:03:00]} 3. Nc3 {[%clk 0:02:57]}  Nf6 {[%clk 0:02:59]} 4. Bg5 {[%clk 0:02:53]}  dxe4 {[%clk 0:02:59]} 5. Nxe4 {[%clk 0:02:52]}  Nbd7 {[%clk 0:02:59]} 6. Nf3 {[%clk 0:02:49]}  h6 {[%clk 0:03:00]} 7. Bxf6 {[%clk 0:02:47]}  Nxf6 {[%clk 0:03:00]} 8. Bd3 {[%clk 0:02:47]}  Nxe4 {[%clk 0:02:54]} 9. Bxe4 {[%clk 0:02:46]}  c5 {[%clk 0:02:54]} 10. Qe2 {[%clk 0:02:37]}  Qa5+ {[%clk 0:02:48]} 11. c3 {[%clk 0:02:31]}  Be7 {[%clk 0:02:47]} 12. dxc5 {[%clk 0:02:25]}  Qxc5 {[%clk 0:02:43]} 13. Bc2 {[%clk 0:02:24]}  Bd7 {[%clk 0:02:35]} 14. O-O-O {[%clk 0:02:22]}  Bc6 {[%clk 0:02:27]} 15. Ne5 {[%clk 0:01:55]}  Bf6 {[%clk 0:02:25]} 16. Nxc6 {[%clk 0:01:52]}  bxc6 {[%clk 0:02:25]} 17. Qf3 {[%clk 0:01:33]}  O-O {[%clk 0:02:14]} 18. h4 {[%clk 0:01:28]}  Rfd8 {[%clk 0:02:03]} 19. Kb1 {[%clk 0:01:12]}  Rab8 {[%clk 0:02:00]} 20. Rxd8+ {[%clk 0:01:10]}  Rxd8 {[%clk 0:01:57]} 21. Rd1 {[%clk 0:00:44]}  Rxd1+ {[%clk 0:01:43]} 22. Bxd1 {[%clk 0:00:42]}  Bxh4 {[%clk 0:01:40]} 23. g3 {[%clk 0:00:42]}  Bf6 {[%clk 0:01:38]} 24. Bc2 {[%clk 0:00:41]}  a5 {[%clk 0:01:27]} 25. a4 {[%clk 0:00:37]}  h5 {[%clk 0:01:25]} 26. Be4 {[%clk 0:00:34]}  h4 {[%clk 0:01:16]} 27. gxh4 {[%clk 0:00:33]}  Bxh4 {[%clk 0:01:14]} 28. Bxc6 {[%clk 0:00:28]}  Bxf2 {[%clk 0:01:12]} 29. Bb5 {[%clk 0:00:26]}  g6 {[%clk 0:01:10]} 30. Ka2 {[%clk 0:00:24]}  Bh4 {[%clk 0:01:07]} 31. Kb3 {[%clk 0:00:24]}  Kg7 {[%clk 0:01:06]} 32. Qe4 {[%clk 0:00:23]}  Bf6 {[%clk 0:01:06]} 33. Bd3 {[%clk 0:00:19]}  Qb6+ {[%clk 0:01:01]} 34. Kc2 {[%clk 0:00:19]}  Qc7 {[%clk 0:00:57]} 35. Qc4 {[%clk 0:00:18]}  Qh2+ {[%clk 0:00:55]} 36. Kb3 {[%clk 0:00:18]}  Be5 {[%clk 0:00:51]} 37. Qb5 {[%clk 0:00:17]}  Bc7 {[%clk 0:00:50]} 38. Qc5 {[%clk 0:00:16]}  Qg3 {[%clk 0:00:49]} 39. Bc4 {[%clk 0:00:16]}  Bd8 {[%clk 0:00:40]} 40. Qa7 {[%clk 0:00:16]}  Qd6 {[%clk 0:00:37]} 41. Qd4+ {[%clk 0:00:13]}  Qxd4 {[%clk 0:00:37]} 42. cxd4 {[%clk 0:00:14]}  Be7 {[%clk 0:00:37]} 43. Kc3 {[%clk 0:00:13]}  g5 {[%clk 0:00:38]} 44. Kd3 {[%clk 0:00:12]}  g4 {[%clk 0:00:37]} 45. Ke4 {[%clk 0:00:12]}  f5+ {[%clk 0:00:37]} 46. Kf4 {[%clk 0:00:12]}  Kf6 {[%clk 0:00:35]} 47. Kg3 {[%clk 0:00:11]}  Bd6+ {[%clk 0:00:35]} 48. Kg2 {[%clk 0:00:11]}  Bf4 {[%clk 0:00:35]} 49. d5 {[%clk 0:00:08]}  e5 {[%clk 0:00:35]} 50. d6 {[%clk 0:00:07]}  e4 {[%clk 0:00:34]} 51. d7 {[%clk 0:00:07]}  Bc7 {[%clk 0:00:34]} 52. Bd5 {[%clk 0:00:04]}  Ke5 {[%clk 0:00:34]} 53. Bg8 {[%clk 0:00:04]}  f4 {[%clk 0:00:34]} 54. Bh7 {[%clk 0:00:03]}  f3+ {[%clk 0:00:33]} 55. Kf2 {[%clk 0:00:03]}  Kf4 {[%clk 0:00:33]} 56. b4 {[%clk 0:00:03]}  axb4 {[%clk 0:00:32]} 0-1


[Site "https://www.chess.com"]

[Event "Titled Tuesday Blitz March 01 Late 2022"]
[White "Piesik, Piotr"]
[Black "Moral Garcia, Serafin"]
[WhiteFideId "1136194"]
[BlackFideId "2201925"]
[WhiteElo "2232"]
[BlackElo "2228"]
[Result "1-0"]
[Round "10"]
[TimeControl "180+1"]
[Date "2022.03.01"]
[WhiteClock "0:00:16"]
[BlackClock "0:00:15"]

1. Nf3 {[%clk 0:02:50]}  Nf6 {[%clk 0:02:59]} 2. g3 {[%clk 0:02:50]}  g6 {[%clk 0:02:59]} 3. Bg2 {[%clk 0:02:51]}  Bg7 {[%clk 0:03:00]} 4. O-O {[%clk 0:02:51]}  O-O {[%clk 0:03:00]} 5. d4 {[%clk 0:02:52]}  d5 {[%clk 0:02:57]} 6. c4 {[%clk 0:02:49]}  dxc4 {[%clk 0:02:57]} 7. Na3 {[%clk 0:02:49]}  c3 {[%clk 0:02:56]} 8. bxc3 {[%clk 0:02:49]}  c5 {[%clk 0:02:55]} 9. Qb3 {[%clk 0:02:50]}  Nc6 {[%clk 0:02:50]} 10. Rd1 {[%clk 0:02:49]}  Qb6 {[%clk 0:02:44]} 11. Nc4 {[%clk 0:02:46]}  Qa6 {[%clk 0:02:34]} 12. Nfe5 {[%clk 0:02:34]}  Nxe5 {[%clk 0:02:19]} 13. dxe5 {[%clk 0:02:20]}  Nd7 {[%clk 0:02:18]} 14. Bf4 {[%clk 0:02:03]}  Nb6 {[%clk 0:02:14]} 15. Ne3 {[%clk 0:01:51]}  Be6 {[%clk 0:02:11]} 16. Qc2 {[%clk 0:01:51]}  Rfd8 {[%clk 0:02:03]} 17. h4 {[%clk 0:01:46]}  Nc4 {[%clk 0:01:57]} 18. Nd5 {[%clk 0:01:42]}  Rd7 {[%clk 0:01:55]} 19. e4 {[%clk 0:01:29]}  Nxe5 {[%clk 0:01:46]} 20. Bxe5 {[%clk 0:01:28]}  Bxe5 {[%clk 0:01:45]} 21. f4 {[%clk 0:01:26]}  Bg7 {[%clk 0:01:43]} 22. f5 {[%clk 0:01:26]}  Bxd5 {[%clk 0:01:42]} 23. exd5 {[%clk 0:01:22]}  Qd6 {[%clk 0:01:39]} 24. fxg6 {[%clk 0:01:22]}  hxg6 {[%clk 0:01:38]} 25. Rd3 {[%clk 0:01:21]}  c4 {[%clk 0:01:31]} 26. Re3 {[%clk 0:01:16]}  Qc5 {[%clk 0:01:28]} 27. Qf2 {[%clk 0:01:16]}  Bh6 {[%clk 0:01:18]} 28. Re2 {[%clk 0:01:10]}  Qxf2+ {[%clk 0:01:14]} 29. Kxf2 {[%clk 0:01:11]}  Bg7 {[%clk 0:01:01]} 30. Rc1 {[%clk 0:01:10]}  Rb8 {[%clk 0:01:00]} 31. a4 {[%clk 0:01:08]}  a6 {[%clk 0:00:59]} 32. a5 {[%clk 0:01:04]}  Rc8 {[%clk 0:00:55]} 33. Bh3 {[%clk 0:00:51]}  Rcc7 {[%clk 0:00:44]} 34. Bxd7 {[%clk 0:00:51]}  Rxd7 {[%clk 0:00:45]} 35. Rd1 {[%clk 0:00:41]}  Bxc3 {[%clk 0:00:44]} 36. Rc2 {[%clk 0:00:41]}  Bxa5 {[%clk 0:00:44]} 37. Rxc4 {[%clk 0:00:41]}  Kg7 {[%clk 0:00:43]} 38. Kf3 {[%clk 0:00:41]}  Bc7 {[%clk 0:00:42]} 39. g4 {[%clk 0:00:39]}  Be5 {[%clk 0:00:39]} 40. Ke4 {[%clk 0:00:37]}  Bd6 {[%clk 0:00:36]} 41. h5 {[%clk 0:00:36]}  Rd8 {[%clk 0:00:34]} 42. Rc3 {[%clk 0:00:27]}  Rh8 {[%clk 0:00:32]} 43. Rh1 {[%clk 0:00:27]}  gxh5 {[%clk 0:00:30]} 44. gxh5 {[%clk 0:00:26]}  Kh6 {[%clk 0:00:30]} 45. Rf3 {[%clk 0:00:23]}  f6 {[%clk 0:00:29]} 46. Rg1 {[%clk 0:00:22]}  Rc8 {[%clk 0:00:28]} 47. Kf5 {[%clk 0:00:20]}  Rc4 {[%clk 0:00:26]} 48. Rg6+ {[%clk 0:00:17]}  Kxh5 {[%clk 0:00:20]} 49. Rg8 {[%clk 0:00:15]}  Rf4+ {[%clk 0:00:15]} 50. Rxf4 {[%clk 0:00:16]}  Bxf4 {[%clk 0:00:15]} 51. Kxf4 {[%clk 0:00:16]}  Kh6 {[%clk 0:00:15]} 52. Kf5 {[%clk 0:00:16]}  Kh7 {[%clk 0:00:15]} 53. Re8 {[%clk 0:00:16]} 1-0


[Site "https://www.chess.com"]

[Event "Titled Tuesday Blitz March 01 Late 2022"]
[White "Ribeiro, Matheus Mendes Domingues"]
[Black "Karttunen, Mika"]
[WhiteFideId "324226923"]
[BlackFideId "502081"]
[WhiteElo "1886"]
[BlackElo "2343"]
[Result "1/2-1/2"]
[Round "10"]
[TimeControl "180+1"]
[Date "2022.03.01"]
[WhiteClock "0:00:22"]
[BlackClock "0:00:18"]

1. c4 {[%clk 0:03:00]}  e5 {[%clk 0:02:58]} 2. Nc3 {[%clk 0:03:01]}  Nf6 {[%clk 0:02:57]} 3. Nf3 {[%clk 0:03:01]}  Nc6 {[%clk 0:02:56]} 4. e4 {[%clk 0:03:02]}  Bb4 {[%clk 0:02:53]} 5. d3 {[%clk 0:03:02]}  Bxc3+ {[%clk 0:02:49]} 6. bxc3 {[%clk 0:03:02]}  d6 {[%clk 0:02:50]} 7. g3 {[%clk 0:03:03]}  O-O {[%clk 0:02:49]} 8. Bg2 {[%clk 0:03:03]}  Ne7 {[%clk 0:02:48]} 9. O-O {[%clk 0:03:03]}  b6 {[%clk 0:02:49]} 10. Nh4 {[%clk 0:03:00]}  Bg4 {[%clk 0:02:40]} 11. Qc2 {[%clk 0:02:55]}  Rb8 {[%clk 0:02:32]} 12. f4 {[%clk 0:02:54]}  Bd7 {[%clk 0:02:13]} 13. fxe5 {[%clk 0:02:48]}  dxe5 {[%clk 0:02:12]} 14. Rxf6 {[%clk 0:02:22]}  gxf6 {[%clk 0:02:12]} 15. Bh6 {[%clk 0:02:23]}  Re8 {[%clk 0:02:11]} 16. Rf1 {[%clk 0:02:16]}  Ng6 {[%clk 0:02:10]} 17. Nf5 {[%clk 0:02:16]}  Bxf5 {[%clk 0:02:07]} 18. exf5 {[%clk 0:02:15]}  Ne7 {[%clk 0:02:06]} 19. Qd1 {[%clk 0:02:01]}  Kh8 {[%clk 0:01:55]} 20. Qh5 {[%clk 0:02:01]}  Ng8 {[%clk 0:01:46]} 21. Qh4 {[%clk 0:01:47]}  Qxd3 {[%clk 0:01:38]} 22. Bd5 {[%clk 0:01:42]}  Re7 {[%clk 0:01:36]} 23. Rf3 {[%clk 0:01:31]}  Qd1+ {[%clk 0:01:27]} 24. Kg2 {[%clk 0:01:24]}  Rd8 {[%clk 0:01:12]} 25. g4 {[%clk 0:01:23]}  e4 {[%clk 0:00:59]} 26. Rh3 {[%clk 0:01:19]}  Rxd5 {[%clk 0:00:43]} 27. cxd5 {[%clk 0:01:08]}  Qxd5 {[%clk 0:00:37]} 28. Bf8 {[%clk 0:01:06]}  Qd2+ {[%clk 0:00:36]} 29. Kg1 {[%clk 0:00:55]}  Qd1+ {[%clk 0:00:33]} 30. Kg2 {[%clk 0:00:54]}  Qe2+ {[%clk 0:00:33]} 31. Kg1 {[%clk 0:00:54]}  Qd1+ {[%clk 0:00:21]} 32. Kg2 {[%clk 0:00:50]}  Qd2+ {[%clk 0:00:18]} 33. Kg1 {[%clk 0:00:22]} 1/2-1/2


[Site "https://www.chess.com"]

[Event "Titled Tuesday Blitz March 01 Late 2022"]
[White "Romanchuk, Viktor"]
[Black "Cardoso Cardoso, Jose Gabriel"]
[WhiteFideId "14109271"]
[BlackFideId "4430492"]
[WhiteElo "2242"]
[BlackElo "2451"]
[Result "0-1"]
[Round "10"]
[TimeControl "180+1"]
[Date "2022.03.01"]
[WhiteClock "0:00:52"]
[BlackClock "0:01:17"]

1. d4 {[%clk 0:03:00]}  g6 {[%clk 0:02:59]} 2. c4 {[%clk 0:03:00]}  Bg7 {[%clk 0:02:59]} 3. Nf3 {[%clk 0:03:01]}  d6 {[%clk 0:02:59]} 4. g3 {[%clk 0:03:01]}  Nc6 {[%clk 0:02:48]} 5. Bg2 {[%clk 0:03:01]}  Nf6 {[%clk 0:02:42]} 6. O-O {[%clk 0:02:59]}  O-O {[%clk 0:02:42]} 7. Nc3 {[%clk 0:02:59]}  Bf5 {[%clk 0:02:42]} 8. d5 {[%clk 0:02:56]}  Na5 {[%clk 0:02:41]} 9. Nd4 {[%clk 0:02:56]}  Bd7 {[%clk 0:02:41]} 10. b3 {[%clk 0:02:55]}  c5 {[%clk 0:02:42]} 11. dxc6 {[%clk 0:02:56]}  Nxc6 {[%clk 0:02:40]} 12. Bb2 {[%clk 0:02:56]}  Nxd4 {[%clk 0:02:27]} 13. Qxd4 {[%clk 0:02:55]}  Bc6 {[%clk 0:02:26]} 14. Nd5 {[%clk 0:02:49]}  Rc8 {[%clk 0:02:17]} 15. Qxa7 {[%clk 0:02:41]}  Bxd5 {[%clk 0:02:10]} 16. cxd5 {[%clk 0:02:26]}  Rc2 {[%clk 0:02:08]} 17. Bd4 {[%clk 0:02:20]}  Qc7 {[%clk 0:01:58]} 18. e3 {[%clk 0:02:05]}  Nd7 {[%clk 0:01:57]} 19. Bxg7 {[%clk 0:01:58]}  Kxg7 {[%clk 0:01:58]} 20. Qd4+ {[%clk 0:01:58]}  f6 {[%clk 0:01:56]} 21. a4 {[%clk 0:01:50]}  Ne5 {[%clk 0:01:51]} 22. Be4 {[%clk 0:01:46]}  Rc3 {[%clk 0:01:49]} 23. Qb4 {[%clk 0:01:41]}  Rc8 {[%clk 0:01:45]} 24. a5 {[%clk 0:01:41]}  Ra8 {[%clk 0:01:35]} 25. Ra2 {[%clk 0:01:21]}  Rc5 {[%clk 0:01:27]} 26. Rfa1 {[%clk 0:01:17]}  Qd7 {[%clk 0:01:22]} 27. a6 {[%clk 0:01:11]}  bxa6 {[%clk 0:01:22]} 28. Rxa6 {[%clk 0:01:09]}  Rxa6 {[%clk 0:01:23]} 29. Rxa6 {[%clk 0:01:09]}  Qh3 {[%clk 0:01:23]} 30. Qd2 {[%clk 0:00:56]}  Ng4 {[%clk 0:01:20]} 31. f3 {[%clk 0:00:56]}  Rc1+ {[%clk 0:01:17]} 32. Qxc1 {[%clk 0:00:52]}  Qxh2+ {[%clk 0:01:17]} 0-1


[Site "https://www.chess.com"]

[Event "Titled Tuesday Blitz March 01 Late 2022"]
[White "Rudykh, Stepan"]
[Black "Zhou, Qiyu"]
[WhiteFideId "4180321"]
[BlackFideId "505161"]
[WhiteElo "2128"]
[BlackElo "1925"]
[Result "1-0"]
[Round "10"]
[TimeControl "180+1"]
[Date "2022.03.02"]
[WhiteClock "0:00:22"]
[BlackClock "0:00:01"]

1. e4 {[%clk 0:03:00]}  c5 {[%clk 0:02:59]} 2. Nf3 {[%clk 0:03:01]}  d6 {[%clk 0:02:59]} 3. d4 {[%clk 0:03:01]}  cxd4 {[%clk 0:03:00]} 4. Nxd4 {[%clk 0:03:01]}  Nf6 {[%clk 0:03:01]} 5. Nc3 {[%clk 0:03:01]}  Nc6 {[%clk 0:03:01]} 6. Bg5 {[%clk 0:03:00]}  e5 {[%clk 0:03:00]} 7. Ndb5 {[%clk 0:02:56]}  a6 {[%clk 0:02:58]} 8. Na3 {[%clk 0:02:55]}  b5 {[%clk 0:02:58]} 9. Nd5 {[%clk 0:02:54]}  Be7 {[%clk 0:02:58]} 10. Bxf6 {[%clk 0:02:53]}  Bxf6 {[%clk 0:02:58]} 11. c3 {[%clk 0:02:53]}  O-O {[%clk 0:02:58]} 12. Nc2 {[%clk 0:02:48]}  Bg5 {[%clk 0:02:58]} 13. a4 {[%clk 0:02:43]}  Rb8 {[%clk 0:02:45]} 14. axb5 {[%clk 0:02:36]}  axb5 {[%clk 0:02:45]} 15. Ncb4 {[%clk 0:02:36]}  Nxb4 {[%clk 0:02:40]} 16. Nxb4 {[%clk 0:02:35]}  Bb7 {[%clk 0:02:37]} 17. Nd5 {[%clk 0:02:08]}  f5 {[%clk 0:02:27]} 18. exf5 {[%clk 0:01:53]}  Rxf5 {[%clk 0:02:26]} 19. Bxb5 {[%clk 0:01:51]}  Kh8 {[%clk 0:02:06]} 20. O-O {[%clk 0:01:44]}  e4 {[%clk 0:01:58]} 21. Bc4 {[%clk 0:01:27]}  Bh4 {[%clk 0:01:06]} 22. Ne3 {[%clk 0:01:11]}  Rf6 {[%clk 0:00:52]} 23. Bd5 {[%clk 0:01:03]}  Bc8 {[%clk 0:00:49]} 24. Bxe4 {[%clk 0:00:57]}  Rxb2 {[%clk 0:00:44]} 25. Nc2 {[%clk 0:00:47]}  Qf8 {[%clk 0:00:38]} 26. g3 {[%clk 0:00:45]}  Bg5 {[%clk 0:00:34]} 27. Ra8 {[%clk 0:00:43]}  Rb3 {[%clk 0:00:12]} 28. Qh5 {[%clk 0:00:42]}  Bh6 {[%clk 0:00:11]} 29. Ne3 {[%clk 0:00:30]}  g6 {[%clk 0:00:04]} 30. Qh4 {[%clk 0:00:27]}  Bxe3 {[%clk 0:00:03]} 31. Rxc8 {[%clk 0:00:23]}  Bxf2+ {[%clk 0:00:02]} 32. Rxf2 {[%clk 0:00:22]}  Rxf2 {[%clk 0:00:01]} 1-0


[Site "https://www.chess.com"]